bitfinex/quotes_ETHUSD_20250404
["timestamp","ask_amount","ask_price","bid_price","bid_amount"]
[1743777062869,5.59035,1788.8,1788.4,5.59154]
[1743777063075,5.59124,1788.6,1788.3,0.7636]
[1743777063275,5.63831798,1788.5,1788.1,5.64241]
[1743777063509,5.5913,1788.5,1788.1,5.64233]
[1743777063815,11.1843,1788.3,1788.1,0.05]
[1743777064022,0.04686798,1788.2,1788.1,0.05]
[1743777064218,5.63907798,1788.2,1788.1,0.05]
[1743777064511,13.07947798,1788.2,1788.1,0.05]
[1743777064703,13.03261,1788.2,1788.1,0.05]
[1743777064874,8.280083,1788.2,1788.1,0.05]
[1743777065075,14.94095098,1788.2,1788.1,0.05]
[1743777065309,14.894083,1788.2,1788.1,1e-05]
[1743777066112,24.504083,1788.2,1788.1,1e-05]
[1743777066313,6.38061,1787.5,1787.1,5.64565]
[1743777066511,5.59473,1787.4,1787.1,0.614565]
[1743777066722,0.04686798,1787.3,1787.1,0.05]
[1743777067015,11.23732798,1787.3,1787.1,0.05]
[1743777067313,5.64220798,1787.2,1787.1,0.05]
[1743777067489,0.04686798,1787.2,1787.1,0.05]
[1743777067686,0.786,1787.5,1787.1,5.64565]
[1743777067915,6.42756798,1787.5,1787.1,5.64561]
[1743777068216,6.42756798,1787.5,1787.1,0.05]
[1743777068515,7.07019478,1787.5,1787.1,0.05]
[1743777068914,0.83286798,1787.5,1787.1,0.05]
[1743777069114,0.04686798,1787.6,1787.1,5.64548]
[1743777069315,6.618,1787.7,1787.3,5.59488]
[1743777069499,0.04686798,1787.6,1787.2,5.59534]
[1743777069702,0.04686798,1787.7,1787.1,0.05]
[1743777070005,5.59422,1787.6,1787.1,5.64547]
[1743777070202,0.04686798,1787.5,1787.1,5.64547]
[1743777070397,5.64132798,1787.5,1787.1,0.05]
[1743777070612,5.64132798,1787.5,1787.1,5.64548]
[1743777070819,0.04686798,1787.5,1787.2,5.5953]
[1743777071015,6.20558678,1787.5,1787.1,0.05]
[1743777071317,0.61097678,1787.5,1787.3,5.59501]
[1743777071615,5.59506,1787.3,1787.1,0.05]
[1743777071820,0.04686798,1787.2,1787.1,0.05]
[1743777072023,11.70220798,1787.2,1787.1,0.05]
[1743777072206,16.38815867,1787.2,1787.1,0.05]
[1743777072584,16.38815867,1787.2,1787.1,1e-05]
[1743777072914,20.82110377,1787.2,1787.1,1e-05]
[1743777073425,6.41233,1786.5,1786.1,0.05]
[1743777073618,5.5983,1786.3,1786.1,0.05]
[1743777073823,5.64533798,1786.2,1786.1,0.05]
[1743777073994,0.04686798,1786.2,1786.1,0.05]
[1743777074210,5.64533798,1786.2,1786.1,0.05]
[1743777074411,0.61138478,1786.2,1786.1,0.05]
[1743777074631,9.96745478,1786.2,1786.1,0.05]
[1743777075442,0.7576,1785.7,1785.1,0.05]
[1743777075626,0.7576,1785.2,1785.1,0.05]
[1743777075944,10.04199498,1785.2,1785.1,0.05]
[1743777076800,10.45538543,1785.2,1785.1,0.05]
[1743777077041,10.04199498,1785.2,1785.1,0.05]
[1743777077832,4.44038498,1785.2,1785.1,0.05]
[1743777078017,3.80446798,1785.2,1785.1,0.05]
[1743777078220,9.40607798,1785.2,1785.1,0.05]
[1743777079411,3.80446798,1785.2,1785.1,0.05]
[1743777079610,0.80446798,1785.2,1785.1,0.05]
[1743777079839,9.40607798,1785.2,1785.1,0.05]
[1743777080007,10.90684278,1785.2,1785.1,0.05]
[1743777080736,3.80446798,1785.2,1785.1,0.05]
[1743777080906,0.04686798,1785.2,1785.1,0.05]
[1743777081107,0.04686798,1785.3,1785.1,0.05]
[1743777081550,9.38891,1785.2,1785.1,0.05]
[1743777081842,15.44891,1785.2,1785.1,0.05]
[1743777082048,17.55396,1785.2,1785.1,0.05]
[1743777082244,24.17696,1785.2,1785.1,0.05]
[1743777082749,0.40973622,1785.4,1785.1,0.05]
[1743777082750,5.60099,1785.4,1785.1,0.05]
[1743777083053,0.04686798,1785.3,1785.1,0.05]
[1743777083522,5.60161,1785.2,1785.1,0.05]
[1743777083718,12.22661,1785.2,1785.1,0.05]
[1743777084161,16.00911,1785.2,1785.1,0.05]
[1743777084452,18.170152,1785.2,1785.1,0.05]
[1743777084612,11.545152,1785.2,1785.1,0.05]
[1743777086850,5.943542,1785.2,1785.1,0.05]
[1743777087050,3.82936798,1785.2,1785.1,0.05]
[1743777087347,9.43097798,1785.2,1785.1,0.05]
[1743777088051,3.82936798,1785.2,1785.1,0.05]
[1743777088235,8.64847798,1785.2,1785.1,0.05]
[1743777088436,3.04686798,1785.2,1785.1,0.05]
[1743777088656,8.60161,1785.2,1785.1,0.05]
[1743777088819,8.9062968,1785.2,1785.1,0.05]
[1743777089014,8.95316478,1785.2,1785.1,0.05]
[1743777089656,16.38336478,1785.2,1785.1,0.05]
[1743777089843,5.60365,1784.6,1784.2,0.8284]
[1743777090044,0.04686798,1784.5,1784.3,5.6044]
[1743777090355,0.04686798,1784.6,1784.2,0.8284]
[1743777090557,0.04686798,1784.7,1784.6,5.60346]
[1743777090733,8.02318648,1785.1,1784.7,5.6029]
[1743777090734,14.08318648,1785.1,1784.7,5.6029]
[1743777090915,0.04686798,1785.0,1784.7,5.6029]
[1743777091112,5.60151,1785.3,1784.8,5.60285]
[1743777091352,5.60151,1785.3,1784.4,8.60396]
[1743777091353,5.60192,1785.1,1784.6,5.60342]
[1743777091652,0.04686798,1785.0,1784.8,5.60285]
[1743777091861,0.04686798,1785.0,1784.9,5.60255]
[1743777092158,0.04686798,1785.2,1785.0,5.60201]
[1743777092356,6.06,1785.5,1785.1,0.8185]
[1743777092538,0.04686798,1785.6,1785.3,5.60124]
[1743777092743,0.04686798,1785.7,1785.5,5.60056]
[1743777093040,0.04686798,1785.8,1785.7,5.60004]
[1743777093214,5.59973,1785.8,1785.2,5.60158]
[1743777093417,5.60047,1785.6,1785.2,5.60147]
[1743777093658,5.64764798,1785.5,1785.1,6.42026]
[1743777093812,0.04686798,1785.5,1785.2,5.60143]
[1743777094351,0.04686798,1785.5,1785.3,5.60124]
[1743777094659,0.04686798,1785.5,1784.8,0.7708]
[1743777094816,0.04686798,1785.5,1785.3,5.60114]
[1743777095018,7.185973,1785.7,1785.3,5.60114]
[1743777095019,0.04686798,1785.6,1785.4,5.60098]
[1743777095223,0.04686798,1785.7,1785.4,5.60098]
[1743777095557,5.60081,1785.5,1785.2,0.7916]
[1743777095719,11.20106,1785.6,1785.2,6.39298]
[1743777096035,0.04686798,1785.5,1785.2,6.39298]
[1743777096217,5.60143,1785.3,1785.0,0.7916]
[1743777096412,5.64858798,1785.2,1784.8,5.60276]
[1743777096649,0.04686798,1785.2,1784.8,5.60282]
[1743777096825,5.64865798,1785.2,1784.8,5.60282]
[1743777097025,11.81537378,1785.2,1784.8,5.60282]
[1743777097226,6.1666558,1785.2,1784.8,5.60282]
[1743777097423,6.21352378,1785.2,1784.8,5.60282]
[1743777097839,5.60192,1785.1,1784.8,5.60282]
[1743777098061,0.04686798,1785.0,1784.7,6.39465]
[1743777098359,0.04686798,1785.0,1784.4,5.60403]
[1743777098360,5.60258,1784.9,1784.4,6.41766]
[1743777098570,0.04686798,1784.8,1784.6,5.6034]
[1743777098715,12.42312,1785.4,1784.7,0.05602751]
[1743777098918,3.0,1785.5,1785.2,5.60161]
[1743777099156,0.04686798,1785.4,1785.1,11.2037]
[1743777099754,0.04686798,1785.4,1785.1,5.60179]
[1743777099964,5.60131,1785.3,1784.9,5.60243]
[1743777100128,0.04686798,1785.2,1784.9,5.60243]
[1743777100333,5.6021,1785.1,1784.7,5.60312]
[1743777100557,0.04686798,1785.0,1784.5,5.60361]
[1743777100757,5.64915798,1785.0,1784.6,5.60347]
[1743777100915,12.42249378,1785.0,1784.6,5.60347]
[1743777101118,5.60258,1784.9,1784.6,5.60347]
[1743777101448,0.04686798,1784.8,1784.5,5.6037]
[1743777101633,6.40328,1784.7,1784.3,5.60439]
[1743777101836,0.04686798,1784.6,1784.3,5.60431]
[1743777102162,5.65045798,1784.6,1784.2,11.20924]
[1743777102456,0.04686798,1784.6,1784.3,5.6044]
[1743777102657,0.04686798,1784.6,1784.4,5.604]
[1743777102861,0.04686798,1784.7,1784.5,11.20731]
[1743777103017,0.04686798,1784.7,1784.5,5.60362]
[1743777103459,0.04686798,1784.7,1784.6,5.60349]
[1743777103756,0.04686798,1784.8,1784.5,5.60362]
[1743777103960,0.04686798,1784.8,1784.6,5.60347]
[1743777104160,0.04686798,1784.8,1784.5,5.60362]
[1743777105227,5.60327,1784.7,1784.3,5.60433]
[1743777105531,0.04686798,1784.6,1784.5,5.60381]
[1743777105844,0.04686798,1784.8,1784.6,5.60349]
[1743777106043,0.04686798,1784.8,1784.6,5.60337]
[1743777106248,0.04686798,1784.8,1784.5,11.2074]
[1743777106564,0.04686798,1784.8,1784.6,11.20673]
[1743777106723,0.04686798,1784.8,1784.7,5.60318]
[1743777106919,0.04686798,1785.0,1784.7,5.60305]
[1743777107125,5.60257,1784.9,1784.5,6.42748]
[1743777107326,0.04686798,1784.9,1784.6,11.20683]
[1743777107634,0.04686798,1784.9,1784.6,5.60336]
[1743777108061,0.04686798,1784.9,1784.3,7.4467]
[1743777108226,0.04686798,1784.9,1784.6,5.60336]
[1743777108557,0.04686798,1784.9,1784.6,5.60335]
[1743777108781,12.4927,1785.3,1785.0,5.6021]
[1743777109069,0.04686798,1785.2,1785.0,5.6021]
[1743777109272,0.04686798,1785.2,1785.1,5.60192]
[1743777109439,0.04686798,1785.3,1785.0,5.60209]
[1743777109635,0.04686798,1785.3,1784.5,0.7891]
[1743777109636,5.60205,1785.1,1784.5,0.7891]
[1743777109835,0.04686798,1785.0,1784.8,5.60258]
[1743777110251,5.64893798,1785.1,1784.7,5.60312]
[1743777110473,5.60257,1784.9,1784.5,6.39288]
[1743777110683,0.04686798,1784.8,1784.5,5.6037]
[1743777110834,0.04686798,1784.8,1784.5,5.60369]
[1743777111034,0.796,1785.0,1784.7,5.60318]
[1743777111274,0.04686798,1784.9,1784.7,5.60318]
[1743777111459,5.64965798,1784.9,1784.2,0.8095]
[1743777111639,6.29422378,1784.9,1784.2,1.19545]
[1743777111846,5.60299,1784.8,1784.4,5.60387]
[1743777112190,5.60352,1784.6,1784.3,5.60428]
[1743777112388,0.04686798,1784.5,1784.3,5.60428]
[1743777112545,0.04686798,1784.6,1784.3,5.60428]
[1743777112745,6.43940798,1784.6,1784.2,11.20932]
[1743777113060,8.09992878,1784.6,1784.1,0.05]
[1743777113247,5.60457,1784.3,1784.1,0.05]
[1743777113448,0.04686798,1784.2,1784.1,0.05]
[1743777113649,0.04686798,1784.5,1784.3,5.60433]
[1743777113873,5.65068798,1784.5,1784.2,5.6047]
[1743777114042,5.60422,1784.4,1784.1,5.65506]
[1743777114248,5.60422,1784.4,1784.2,5.60475]
[1743777114249,0.04686798,1784.4,1784.2,5.60475]
[1743777114593,0.04686798,1784.4,1784.1,0.05]
[1743777114887,0.04686798,1784.4,1784.1,11.25997]
[1743777115067,0.04686798,1784.4,1784.2,5.60473]
[1743777115267,6.26184478,1784.4,1784.1,0.05]
[1743777115575,0.65755478,1784.4,1784.1,0.05]
[1743777115781,6.26169478,1784.4,1784.1,0.05]
[1743777116087,5.60445,1784.3,1784.1,0.05]
[1743777116296,6.06,1784.5,1784.1,0.05]
[1743777116593,5.6023,1785.0,1784.4,5.60412]
[1743777116762,0.04686798,1784.9,1784.6,5.60331]
[1743777116963,5.64953798,1784.9,1784.5,5.60367]
[1743777117166,5.60287,1784.8,1784.4,11.20812]
[1743777117369,0.04686798,1784.7,1784.4,5.60397]
[1743777117689,5.60256,1784.9,1784.6,5.60346]
[1743777117690,0.04686798,1784.8,1784.6,5.60346]
[1743777117849,5.60259,1784.9,1784.6,5.6034]
[1743777118050,5.64945798,1784.9,1784.4,5.60406]
[1743777118255,11.20617,1784.8,1784.4,5.60406]
[1743777118591,0.04686798,1784.7,1784.1,7.053338]
[1743777118800,0.04686798,1784.7,1784.2,5.60475]
[1743777118996,0.04686798,1784.7,1784.5,5.60366]
[1743777119200,11.25340798,1784.7,1784.3,5.60418]
[1743777119358,1.9002408,1784.6,1784.3,5.60418]
[1743777119558,0.04686798,1784.5,1784.2,5.60469]
[1743777119864,0.04686798,1784.5,1784.1,6.4878]
[1743777119865,0.04686798,1784.5,1784.4,5.60412]
[1743777120067,5.60357,1784.6,1784.1,6.48755]
[1743777120253,5.60455,1784.3,1784.1,0.05]
[1743777120456,0.82176798,1784.5,1784.1,0.05]
[1743777120457,5.60415,1784.4,1784.1,5.6549]
[1743777120658,0.04686798,1784.3,1784.1,5.6549]
[1743777120890,5.65139798,1784.3,1784.1,0.05]
[1743777121095,0.04686798,1784.3,1784.1,0.05]
[1743777121252,5.65146798,1784.3,1784.1,0.05]
[1743777121458,0.04686798,1784.3,1784.1,0.05]
[1743777121994,5.65112798,1784.4,1784.1,0.05]
[1743777122199,6.85407678,1784.4,1784.1,0.05]
[1743777122409,5.60475,1784.2,1784.1,0.05]
[1743777122576,6.47191798,1784.2,1784.1,0.05]
[1743777122768,6.89795118,1784.2,1784.1,0.05]
[1743777122974,6.47191798,1784.2,1784.1,0.05]
[1743777123762,0.86716798,1784.2,1784.1,0.05]
[1743777124166,6.47191798,1784.2,1784.1,0.05]
[1743777125332,11.34176678,1784.2,1784.1,0.05]
[1743777125515,11.2948988,1784.2,1784.1,0.05]
[1743777126285,6.06,1784.4,1784.3,5.60443]
[1743777126487,0.7722,1784.7,1784.4,5.60397]
[1743777126691,0.04686798,1784.6,1784.4,5.60397]
[1743777126991,0.04686798,1784.7,1784.6,5.60349]
[1743777127192,6.621,1784.8,1784.6,5.60336]
[1743777127392,0.7722,1785.0,1784.7,5.60302]
[1743777127616,0.04686798,1784.9,1784.4,0.7653]
[1743777127893,0.04686798,1784.9,1784.4,5.6041]
[1743777128229,5.60293,1784.8,1784.4,5.60409]
[1743777128431,5.60353,1784.6,1784.3,5.60433]
[1743777128731,0.04686798,1784.5,1784.1,0.05]
[1743777129028,5.60475,1784.2,1784.1,0.05]
[1743777129190,6.06464355,1784.2,1784.1,0.05]
[1743777129406,0.45989355,1784.2,1784.1,0.05]
[1743777130639,6.06464355,1784.2,1784.1,0.05]
[1743777130941,0.45989355,1784.2,1784.1,0.05]
[1743777131104,5.65161798,1784.2,1784.1,0.05]
[1743777131548,6.77723078,1784.2,1784.1,0.05]
[1743777131849,16.59933078,1784.2,1784.1,0.05]
[1743777132030,16.5524628,1784.2,1784.1,0.05]
[1743777132406,6.06,1784.2,1784.1,5.65506]
[1743777132619,5.65102798,1784.4,1784.1,0.05]
[1743777132903,5.65101798,1784.4,1784.1,0.05]
[1743777133109,6.48310859,1784.6,1784.2,5.60461]
[1743777133342,5.60443,1784.4,1784.1,0.05]
[1743777133508,11.25598798,1784.3,1784.1,0.05]
[1743777133704,5.60475,1784.2,1784.1,0.05]
[1743777134726,5.65161798,1784.2,1784.1,0.05]
[1743777137947,5.65161798,1784.2,1783.6,0.8104]
[1743777137948,5.60632,1783.7,1783.6,0.8104]
[1743777138147,12.46782,1783.7,1782.9,6.42292]
[1743777138474,12.46782,1783.7,1783.2,5.60789]
[1743777138475,0.04686798,1783.6,1783.2,5.60789]
[1743777138676,5.60632,1783.7,1783.3,5.60757]
[1743777138982,0.04686798,1783.7,1783.3,5.60746]
[1743777139141,0.04686798,1783.9,1783.3,6.38874]
[1743777139348,5.65289798,1783.8,1783.5,5.60684]
[1743777139555,5.65289798,1783.8,1783.4,5.6071]
[1743777139769,6.06,1784.1,1783.8,5.60581]
[1743777139966,0.04686798,1784.0,1783.5,5.60695]
[1743777140183,0.04686798,1784.0,1783.5,5.60692]
[1743777140184,6.02672258,1783.9,1783.5,5.60692]
[1743777140366,0.04686798,1783.8,1783.5,5.60688]
[1743777140564,0.04686798,1783.8,1783.5,5.60685]
[1743777140743,0.04686798,1783.8,1783.4,5.60715]
[1743777140942,5.65292798,1783.8,1783.4,5.60715]
[1743777141240,5.65292798,1783.8,1783.5,5.60692]
[1743777141437,0.04686798,1783.8,1783.5,5.60692]
[1743777141638,6.42666798,1783.8,1783.4,11.21448]
[1743777141890,6.42666798,1783.8,1783.4,5.60724]
[1743777142181,5.60634,1783.7,1783.3,6.38872]
[1743777142342,7.11235957,1783.8,1783.3,0.7812]
[1743777142343,0.04686798,1783.6,1783.3,0.7812]
[1743777142542,0.04686798,1783.7,1783.6,5.60662]
[1743777142763,0.04686798,1783.8,1783.7,5.60632]
[1743777142978,6.06,1784.2,1783.9,5.60554]
[1743777142979,0.04686798,1784.0,1783.9,5.60554]
[1743777143183,17.82815,1784.3,1783.9,5.60554]
[1743777143358,0.04686798,1784.2,1783.9,5.60548]
[1743777143546,0.04686798,1784.2,1784.0,5.60511]
[1743777143748,0.04686798,1784.2,1783.8,5.60591]
[1743777143950,0.04686798,1784.2,1783.7,0.7895]
[1743777143951,5.60506,1784.1,1783.7,6.39563]
[1743777144185,0.04686798,1784.0,1783.7,6.39563]
[1743777144369,0.04686798,1784.3,1783.7,0.7895]
[1743777144567,6.06,1784.5,1784.3,5.60433]
[1743777144776,0.04686798,1784.6,1784.1,0.8263]
[1743777144943,31.27,1784.7,1784.4,5.60398]
[1743777145141,0.04686798,1784.6,1784.4,5.6041]
[1743777145346,5.6043,1784.4,1784.0,5.60537]
[1743777145558,5.6043,1784.4,1783.9,5.60558]
[1743777145559,5.65130798,1784.3,1783.9,5.60558]
[1743777145788,0.04686798,1784.3,1784.2,5.60475]
[1743777146083,0.04686798,1784.4,1784.1,5.60501]
[1743777146248,0.04686798,1784.4,1784.1,5.60492]
[1743777146449,5.65102798,1784.4,1784.0,11.21054]
[1743777146686,5.65102798,1784.4,1784.1,5.60497]
[1743777147051,0.04686798,1784.4,1784.1,5.60497]
[1743777147248,6.06,1784.7,1784.2,5.60462]
[1743777147490,6.06,1784.7,1784.5,5.60358]
[1743777147647,3.04686798,1784.8,1784.5,11.20728]
[1743777147844,11.66157,1785.3,1784.5,0.818]
[1743777148187,6.06,1785.3,1785.0,5.60211]
[1743777148388,0.04686798,1785.3,1784.9,0.8254]
[1743777148594,18.09361,1785.6,1785.2,5.6015]
[1743777148893,0.04686798,1785.5,1785.2,5.6015]
[1743777149101,5.64753798,1785.5,1784.8,5.60267]
[1743777149385,0.7571,1785.1,1784.8,5.60267]
[1743777149584,0.80396798,1785.1,1784.8,5.60267]
[1743777149884,0.04686798,1785.2,1785.0,5.60224]
[1743777150089,0.04686798,1785.2,1784.9,5.60244]
[1743777150383,0.04686798,1785.2,1784.9,5.6025]
[1743777150549,1.3218538,1785.4,1785.1,5.60192]
[1743777150749,1.3218538,1785.4,1785.1,11.20374]
[1743777150990,0.04686798,1785.4,1785.3,5.60129]
[1743777151175,0.04686798,1785.5,1785.3,5.60129]
[1743777151379,0.04686798,1785.5,1785.2,6.40816]
[1743777151605,5.60146,1785.3,1784.8,5.60283]
[1743777151749,5.60263,1784.9,1784.2,0.8066]
[1743777152096,6.66186798,1785.0,1784.3,11.31332543]
[1743777152392,0.04686798,1784.9,1784.6,5.6033]
[1743777153056,6.615,1785.0,1784.7,5.60317]
[1743777153264,12.26434798,1785.0,1784.6,5.60344]
[1743777153595,12.21748,1785.0,1784.6,5.6032]
[1743777153893,1.26861598,1784.9,1784.7,5.60312]
[1743777154087,1.26861598,1784.9,1784.6,5.6032]
[1743777154418,0.04686798,1784.9,1784.5,5.60381]
[1743777154551,5.60197,1785.1,1784.8,5.60286]
[1743777154552,9.614,1785.1,1784.8,5.60286]
[1743777154750,9.66086798,1785.1,1784.6,6.3565]
[1743777154987,3.04686798,1785.1,1784.9,5.60243]
[1743777155158,6.614,1785.3,1785.0,5.60211]
[1743777155367,5.60161,1785.2,1784.8,11.20539]
[1743777155583,0.04686798,1785.1,1784.8,5.60263]
[1743777155969,7.8355,1785.3,1784.7,5.60318]
[1743777156173,13.48373798,1785.3,1785.0,5.60199]
[1743777156396,13.43687,1785.3,1785.0,5.60199]
[1743777156593,0.04686798,1785.2,1785.0,5.60199]
[1743777156970,6.614,1785.3,1785.0,5.60199]
[1743777157168,12.26226798,1785.3,1784.9,5.60253]
[1743777157366,6.38201,1785.5,1785.1,5.60183]
[1743777157597,5.60109,1785.4,1785.1,0.8157]
[1743777157797,5.6018,1785.2,1784.8,6.41856]
[1743777157993,5.6018,1785.2,1784.8,12.02129]
[1743777158303,0.04686798,1785.1,1784.8,5.60271]
[1743777158602,5.60179,1785.2,1784.9,5.6024]
[1743777158784,11.66045,1785.6,1785.2,5.60159]
[1743777158985,5.64775798,1785.5,1785.1,6.41122]
[1743777159169,5.64775798,1785.5,1785.2,5.60143]
[1743777159372,5.60089,1785.5,1785.2,5.60143]
[1743777159591,1.2013962,1785.7,1785.3,5.60112]
[1743777159592,0.7734,1785.7,1785.3,5.60112]
[1743777159762,5.60035,1785.6,1785.2,6.802813]
[1743777159967,5.60035,1785.6,1785.2,12.404323]
[1743777160268,5.60035,1785.6,1785.2,5.60151]
[1743777160464,3.7734,1785.7,1784.9,0.7669]
[1743777160465,5.60069,1785.5,1784.9,0.7669]
[1743777160668,5.60112,1785.4,1785.0,5.60197]
[1743777160869,5.60112,1785.4,1785.1,5.60188]
[1743777161079,5.60112,1785.4,1785.0,11.20405]
[1743777161285,5.6007,1785.5,1785.1,5.60166]
[1743777161465,5.60107,1785.4,1785.0,6.799265]
[1743777161660,5.60107,1785.4,1785.1,5.60188]
[1743777161948,9.37347,1785.7,1785.0,6.799225]
[1743777162231,5.60162,1785.2,1784.8,6.163121]
[1743777162435,6.06,1785.2,1784.5,6.39676]
[1743777162594,5.60305,1784.8,1784.4,11.20797]
[1743777162794,6.40949,1785.1,1784.4,5.60412]
[1743777162995,12.01169,1785.1,1784.7,5.60308]
[1743777163222,5.60224,1785.0,1784.7,5.60303]
[1743777163418,6.40949,1785.1,1784.7,5.60303]
[1743777163595,11.66162,1785.2,1784.8,5.60272]
[1743777163795,12.00085,1785.3,1784.9,5.60236]
[1743777163987,12.00092,1785.3,1784.9,6.722877]
[1743777164189,5.60166,1785.2,1784.9,1.120517]
[1743777164432,5.6022,1785.1,1784.7,6.41436]
[1743777164640,5.60166,1785.2,1784.8,11.20554]
[1743777164934,0.7981,1785.3,1784.7,6.41441]
[1743777165134,5.60301,1784.8,1784.5,0.8123]
[1743777165452,5.60402,1784.5,1784.2,0.7619]
[1743777165596,5.60447,1784.3,1784.1,1.121017]
[1743777165932,5.60528,1784.1,1783.7,6.43464]
[1743777166139,5.60508,1784.1,1783.7,6.4349]
[1743777166333,5.60538,1784.0,1783.7,6.4349]
[1743777166507,5.60538,1784.0,1783.7,0.64349]
[1743777166708,5.60612,1783.8,1783.5,0.8073]
[1743777166908,6.06,1784.0,1783.2,6.41498]
[1743777167103,6.06,1784.0,1782.9,5.60867]
[1743777167104,5.60737,1783.4,1783.0,5.60836]
[1743777167308,5.6079,1783.2,1782.8,6.4163]
[1743777167646,14.21483,1783.4,1783.0,5.6084]
[1743777167789,5.6077,1783.3,1783.0,1.121709]
[1743777167994,5.60791,1783.2,1783.0,1.121709]
[1743777168207,5.60846,1783.1,1782.7,5.60946]
[1743777168409,11.21598,1783.2,1782.8,5.6091]
[1743777168734,5.60789,1783.2,1782.7,5.60946]
[1743777168934,12.4951,1783.3,1782.9,5.6087]
[1743777169243,6.06,1783.3,1783.1,5.60813]
[1743777169394,6.06,1783.3,1783.1,6.729784]
[1743777169596,0.8212,1783.6,1783.2,5.60773]
[1743777169842,12.669,1783.7,1783.4,5.60707]
[1743777170045,6.609,1783.7,1783.1,7.510844]
[1743777170196,6.3848,1783.9,1783.4,5.60703]
[1743777170403,12.671,1784.0,1783.7,5.60617]
[1743777170597,25.201,1784.1,1783.8,5.606]
[1743777170933,25.201,1784.1,1783.7,5.60617]
[1743777171242,5.60565,1784.0,1783.5,6.167513]
[1743777171449,5.60624,1783.8,1783.4,5.60725]
[1743777171738,5.60601,1783.8,1783.5,5.60681]
[1743777171945,11.21229,1783.8,1783.4,5.60706]
[1743777172109,5.60569,1783.9,1783.4,6.810401]
[1743777172305,5.60619,1783.8,1783.4,6.810401]
[1743777172506,5.60676,1783.6,1783.2,5.60773]
[1743777172700,5.60711,1783.5,1783.1,6.729844]
[1743777172905,5.60739,1783.4,1783.1,1.121654]
[1743777173233,5.60794,1783.2,1782.8,5.60914]
[1743777173604,3.7601,1783.6,1783.3,5.60758]
[1743777173801,6.06,1783.7,1783.0,5.60852]
[1743777174043,6.06,1783.7,1783.4,5.60704]
[1743777174248,6.06,1783.7,1783.4,1.121446]
[1743777174417,6.06,1783.7,1783.2,6.4219]
[1743777174418,0.7778,1783.9,1783.6,5.60651]
[1743777174623,5.60539,1784.0,1783.6,5.60651]
[1743777174837,5.60612,1783.8,1783.4,5.60712]
[1743777175039,31.812,1784.1,1783.5,5.60665]
[1743777175040,5.60573,1783.9,1783.5,5.60665]
[1743777175248,5.60573,1783.9,1783.6,5.60657]
[1743777175548,5.60275,1784.9,1784.4,5.60386]
[1743777175757,6.40724,1785.0,1784.6,5.60321]
[1743777175917,5.60164,1785.2,1784.8,5.60275]
[1743777176117,5.60205,1785.1,1784.7,11.20609]
[1743777176311,5.60205,1785.1,1784.7,5.60301]
[1743777176511,5.60164,1785.2,1784.7,5.60301]
[1743777176721,5.60222,1785.1,1784.6,6.163751]
[1743777177057,6.903464,1785.2,1784.8,5.6028]
[1743777177347,11.20416,1785.1,1784.7,5.60309]
[1743777177525,5.60226,1785.0,1784.6,5.60328]
[1743777177726,5.60193,1785.1,1784.6,5.60328]
[1743777177923,5.60224,1785.0,1784.6,5.60328]
[1743777178227,11.20544,1784.9,1784.5,6.39088]
[1743777178439,5.6026,1784.9,1784.5,6.39073]
[1743777178646,5.6026,1784.9,1784.5,6.39072]
[1743777179458,6.722677,1785.0,1784.6,5.60332]
[1743777179612,5.60226,1785.0,1784.6,5.60332]
[1743777179807,5.60305,1784.8,1784.5,0.7871]
[1743777180011,5.60305,1784.8,1784.4,5.60407]
[1743777180248,7.361764,1785.2,1784.3,0.7972]
[1743777180433,5.60329,1784.7,1784.3,0.7972]
[1743777180638,5.60329,1784.7,1784.0,6.38644]
[1743777180639,6.609,1784.7,1784.0,6.38644]
[1743777180838,6.609,1784.7,1783.8,5.60587]
[1743777180839,6.42876,1784.6,1783.8,5.60587]
[1743777181045,5.60458,1784.3,1783.9,5.60565]
[1743777181427,12.21341,1784.4,1784.0,5.60529]
[1743777181757,8.996724,1784.4,1783.7,0.7811]
[1743777181911,5.6054,1784.0,1783.7,0.7811]
[1743777182252,5.6054,1784.0,1783.6,5.60651]
[1743777182454,5.60632,1783.7,1783.3,5.60755]
[1743777182655,5.60643,1783.7,1783.3,5.60755]
[1743777182864,6.37514,1783.5,1783.1,5.60801]
[1743777183018,5.60786,1783.3,1782.9,5.60877]
[1743777183219,5.60804,1783.2,1782.8,11.21801]
[1743777183423,5.60728,1783.4,1783.1,5.60817]
[1743777183862,0.4127888,1783.3,1783.2,10.5423912]
[1743777184020,0.4127888,1783.3,1783.2,6.66185912]
[1743777184220,0.4127888,1783.3,1783.2,7.51036296]
[1743777184453,0.4127888,1783.3,1783.2,7.50956296]
[1743777184659,0.4127888,1783.3,1783.2,13.16249897]
[1743777184986,5.60462,1784.3,1783.9,5.60549]
[1743777185279,5.60462,1784.3,1783.9,5.60562]
[1743777185448,11.20852,1784.4,1783.9,5.60562]
[1743777185651,5.60454,1784.3,1783.7,0.8316]
[1743777185869,5.60455,1784.3,1783.9,5.60566]
[1743777186240,7.3901,1784.5,1784.2,5.6047]
[1743777186443,5.6032,1784.7,1784.3,11.20859]
[1743777186648,7.3879,1784.9,1784.4,0.05604331]
[1743777186838,9.86919,1784.9,1784.6,5.60338]
[1743777187071,12.21155,1784.9,1784.5,5.60375]
[1743777187382,6.3382264,1785.1,1784.8,5.60286]
[1743777187539,0.7361764,1785.1,1784.6,0.05603293]
[1743777187741,0.7361764,1785.1,1784.4,6.20293601]
[1743777187742,0.7361764,1785.1,1784.7,5.60289]
[1743777188053,12.20901,1785.4,1785.0,5.60202]